Cogmind - Beta 13 @@@ ROGUE MODE // 2024.05.08 @ 01:59:39 Player: HourglassMan Result: Destroyed by S-10 Pest with Light Assault Rifle Performance ------------- Evolutions (0) 0 Regions Visited (2) 400 Robots Destroyed (14) 70 Value Destroyed (311) 311 Prototype IDs (2) 40 Alien Tech Used (0) 0 Bonus (67) 67 TOTAL SCORE: 888 Bonus ------- Follower Combat Kills 67 Cogmind --------- Core Integrity 0/250 Matter 297/300 Energy 160/160 System Corruption 2% Temperature Cool (36) Movement Walking (120) Location -10/Mines Parts ------- > --- POWER (1) -------- Light Nuclear Core > --- PROPULSION (2) --- Aluminum Leg Aluminum Leg > --- UTILITY (2) ------ Small Storage Unit Visual Processing Unit > --- WEAPON (2) ------- Particle Gun Light Assault Rifle > --- INVENTORY (8) ---- Improved Ion Engine Aluminum Leg Launcher Guidance Computer Core Shielding Shock Absorption System Splice Drone Bay Particle Gun Mining Laser Peak State ------------ > --- POWER ------------ Light Nuclear Core > --- PROPULSION ------- Aluminum Leg Aluminum Leg > --- UTILITY ---------- Small Storage Unit Visual Processing Unit > --- WEAPON ----------- Particle Gun Light Assault Rifle > --- INVENTORY -------- Improved Ion Engine Compact Wheel Visual Processing Unit Launcher Guidance Computer Core Shielding Shock Absorption System Splice Drone Bay Particle Gun [Rating: 13] Favorites ----------- Power Light Ion Engine Engine Light Ion Engine Power Core Light Nuclear Core Propulsion Aluminum Leg Leg Aluminum Leg Wheel Wheel Utility Small Storage Unit Storage Small Storage Unit Processor Visual Processing Unit Weapon Light Assault Rifle Energy Gun Particle Gun Ballistic Gun Light Assault Rifle Launcher Mini Grenade Launcher Build | -11 -10 -10 ------- Run | Yrd Mat Min Slots Evolved . | . . . Power . | . . . Propulsion . | . . . Utility . | . . . Weapon . | . . . Parts Attached 28 | 6 7 15 Power 7 | 1 2 4 Engine 5 | 1 2 2 Core 2 | . . 2 Reactor . | . . . Propulsion 9 | 2 1 6 Treads . | . . . Leg 7 | 2 1 4 Wheel 2 | . . 2 Hover . | . . . Flight . | . . . Utility 3 | 1 1 1 Device . | . . . Storage 1 | 1 . . Processor 2 | . 1 1 Hackware . | . . . Protection . | . . . Artifact . | . . . Weapon 9 | 2 3 4 Energy Gun 2 | 1 . 1 Energy Cannon . | . . . Ballistic Gun 5 | 1 2 2 Ballistic Cannon . | . . . Launcher 2 | . 1 1 Special Weapon . | . . . Impact Weapon . | . . . Slashing Weapon . | . . . Piercing Weapon . | . . . Special Melee Weapon . | . . . Unidentified Prototypes . | . . . Parts Lost 8 | . . 8 Power 2 | . . 2 Propulsion 3 | . . 3 Utility . | . . . Weapon 3 | . . 3 Highest Loss Streak 6 | . . 6 To Critical Strikes . | . . . Average Slot Usage (%) 98 | . 99 97 Engine 7 | . 14 3 Core 6 | . . 9 Leg 21 | . 28 18 Wheel 5 | . . 8 Storage 14 | . 14 14 Processor 13 | . 13 14 Energy Gun 5 | . 4 5 Ballistic Gun 21 | . 21 21 Naked Turns . | . . . Heaviest Build 16 | 12 16 14 Greatest Support 26 | 20 20 26 Greatest Overweight (x) 3 | 3 . 1 Average Overweight (x) . | . . . Largest Inventory Capacity 8 | 8 8 8 Average Capacity 7 | 7 8 8 Most Carried 8 | 4 8 8 Average Carried 7 | 2 7 7 Final Capacity 8 | 8 8 8 Final Carried 8 | 4 8 8 Class Distribution -------------------- 59% | Mutant 40% | Scavenger-Mutant Dominant Class ---------------- Mutant | -10/Materials Scavenger-Mutant | -10/Mines Resources | -11 -10 -10 ----------- Run | Yrd Mat Min Matter Collected 592 | 232 131 229 Remotely . | . . . Salvage Created 357 | . 141 216 Parts 28 | . 19 9 Haulers Intercepted . | . . . Recyclers Shooed 2 | . 2 . Parts Field Recycled . | . . . Retrieved Matter . | . . . Parts Self-Destructed . | . . . Prevented . | . . . Kills | -11 -10 -10 ------- Run | Yrd Mat Min Combat Hostiles Destroyed 18 | . 8 10 Guns 7 | . 3 4 AOE 11 | . 5 6 Classes Destroyed 5 | . 4 1 Builder 1 | . 1 . Recycler 1 | . 1 . Swarmer 6 | . 6 . Grunt 6 | . 2 4 Assembled 6 | . . 6 Best Kill Streak 8 | . 8 6 Combat Bots Only 6 | . 6 6 Max Kills in Single Turn 6 | . 6 4 Gunslinging . | . . . Exploded 4 | . 4 4 Melee . | . . . Uniques/NPCs Destroyed . | . . . Combat | -11 -10 -10 -------- Run | Yrd Mat Min Hostile Shots Fired 129 | . 47 82 Missed 40 | . 17 23 Damage Taken 1210 | . 254 956 Core 257 | . 66 191 Absorbed by Shields . | . . . Core Remaining (%) 100 | 100 . . Volleys Fired 40 | . 12 28 Largest 2 | . 2 2 Hottest 85 | . 70 85 Shots Fired 78 | . 22 56 Gun 73 | . 20 53 Cannon . | . . . Launcher 5 | . 2 3 Special . | . . . Kinetic 66 | . 16 50 Thermal 7 | . 4 3 Explosive 5 | . 2 3 Electromagnetic . | . . . Robot Hit Streak 10 | . 10 8 Robot Miss Streak 5 | . 5 2 Penetration Max . | . . . Secondary Targets 1 | . 1 . Max Gunslinging Chain 1 | . 1 . Shots Hit Robots 48 | . 12 36 Core Hits 40 | . 13 27 Critical Kills . | . . . Critical Parts Destroyed . | . . . Critical Strikes . | . . . Melee Attacks . | . . . Impact . | . . . Slashing . | . . . Piercing . | . . . Sneak Attacks . | . . . Combat Hostiles . | . . . Follow-up Attacks . | . . . Damage Inflicted 1174 | 1 490 683 Guns 444 | . 133 311 Cannons . | . . . Explosions 729 | . 357 372 Melee . | . . . Ramming 1 | 1 . . Kinetic 406 | . 108 298 Thermal 38 | . 25 13 Explosive 729 | . 357 372 Electromagnetic . | . . . Impact . | . . . Slashing . | . . . Piercing . | . . . Highest Corruption 2 | . . 2 Average Corruption 2 | . . 2 Corruption Purged . | . . . Corruption Blocked . | . . . Effects 7 | . . 7 Message Errors 1 | . . 1 Matter Fused 2 | . . 2 Energy Discharges 2 | . . 2 Data Loss (major) 1 | . . 1 Misfires 1 | . . 1 Overload Shots . | . . . Overflow Damage 11 | . . 11 Projectiles . | . . . Explosions 11 | . . 11 Melee . | . . . Knockbacks . | . . . Impact . | . . . Kinetic . | . . . Secondary . | . . . Self-Inflicted Damage 51 | . . 51 Shots 2 | . . 2 Rammed . | . . . Targets Rammed 1 | 1 . . Kicked 1 | 1 . . Crushed . | . . . Highest Temperature 78 | . 31 78 Average Temperature 16 | . 13 16 Received Heat Transfer 221 | . 30 191 Siege Activations . | . . . Robots Corrupted . | . . . Combat Hostiles . | . . . Parts Fried . | . . . Impact Corruptions . | . . . Robots Melted . | . . . Combat Hostiles . | . . . Parts Melted . | . . . Heat Transferred 111 | . 74 37 Parts Sabotaged . | . . . Parts Stolen . | . . . Parts Stripped . | . . . Power Chain Reactions . | . . . Alert | -11 -10 -10 ------- Run | Yrd Mat Min Peak Influence 246 | . 246 197 Initial 95 | . . 95 Average 98 | . 152 80 Maximum Alert Level 1 | . 1 . Low Security (%) 90 | 100 68 100 Level 1 9 | . 31 . Level 2 . | . . . Level 3 . | . . . Level 4 . | . . . Level 5 . | . . . High Security . | . . . Max Security . | . . . Squads Dispatched 1 | . 1 . Investigation 1 | . 1 . Extermination . | . . . Reinforcement . | . . . Assault . | . . . Garrison . | . . . Intercept . | . . . Searches Triggered . | . . . Construction Impeded . | . . . Haulers Reinforced . | . . . Active Scanning Responses . | . . . Cargo Convoy Interrupts . | . . . Stealth | -11 -10 -10 --------- Run | Yrd Mat Min Distress Signals . | . . . Communications Jammed . | . . . Distress Signals . | . . . Times Spotted 39 | . 10 29 Peak Tracking Total 18 | . 8 18 Tactical Retreats 2 | . . 2 Traps | -11 -10 -10 ------- Run | Yrd Mat Min Traps Triggered . | . . . Indirectly . | . . . Trap Hack Attempts . | . . . Triggered . | . . . Disarmed . | . . . Reprogrammed . | . . . Reused . | . . . Traps Extracted . | . . . Installed . | . . . Triggered . | . . . Machines | -11 -10 -10 ---------- Run | Yrd Mat Min Machines Disabled 1 | . 1 . Max in Single Turn 1 | . 1 . Machines Repaired . | . . . Machines Dismantled . | . . . Machines Sabotaged . | . . . Overloaded Fab Kills . | . . . Hacking | -11 -10 -10 --------- Run | Yrd Mat Min Machines Accessed 4 | . 3 1 Terminals 2 | . 2 . Fabricators . | . . . Repair Stations . | . . . Recycling Units 1 | . 1 . Scanalyzers . | . . . Garrison Access . | . . . Total Hacks 7 | . 6 1 Successful 6 | . 5 1 Failed 1 | . 1 . Catastrophic . | . . . Database Lockouts . | . . . Manual . | . . . Terminals 3 | . 3 . Fabricators . | . . . Repair Stations . | . . . Recycling Units 3 | . 3 . Scanalyzers . | . . . Garrison Access . | . . . Terminal Hacks 4 | . 3 1 Prototype ID Bank 1 | . 1 . Open Door 1 | . . 1 Emergency Access Points 1 | . 1 . Transport Status 1 | . 1 . Fabricator Hacks . | . . . Repair Station Hacks . | . . . Recycling Unit Hacks 2 | . 2 . Process 1 | . 1 . Report Inventory 1 | . 1 . Scanalyzer . | . . . Garrison Access Hacks . | . . . Unauthorized Hacks . | . . . Terminals . | . . . Fabricators . | . . . Repair Stations . | . . . Recycling Units . | . . . Scanalyzers . | . . . Garrison Access . | . . . Data Cores Recovered . | . . . Used . | . . . Hacking Detections 2 | . 2 . Full Trace Events 1 | . 1 . Feedback Events . | . . . Feedback Blocked . | . . . Robot Schematics Acquired . | . . . Robots Built . | . . . Authchips . | . . . Time . | . . . Total Robot Build Rating . | . . . Part Schematics Acquired . | . . . Parts Built . | . . . Authchips . | . . . Time . | . . . Total Part Build Rating . | . . . Parts Repaired . | . . . Time . | . . . Parts Recycled . | . . . Recycled Matter 77 | . 77 . Retrieved Matter . | . . . Retrieved Components . | . . . Parts Scanalyzed . | . . . Part Schematics Acquired . | . . . Parts Damaged . | . . . Bothacking | -11 -10 -10 ------------ Run | Yrd Mat Min Used RIF Installer . | . . . Robots Hacked . | . . . Non-combat . | . . . Combat . | . . . Robot Hacks Applied . | . . . Relay Couplers Released . | . . . Fabnet Peak Effective % . | . . . Robots Rewired . | . . . Allies Hacked . | . . . Hacks Repelled . | . . . Allies | -11 -10 -10 -------- Run | Yrd Mat Min Total Allies 1 | . . 1 Largest Group 1 | . . 1 Highest-Rated Group 31 | . . 31 Highest-Rated Ally 31 | . . 31 Total Orders . | . . . Ally Attacks 7 | . . 7 Total Damage 106 | . . 106 Kills 3 | . . 3 Allies Corrupted . | . . . Allies Melted . | . . . Intel | -11 -10 -10 ------- Run | Yrd Mat Min Robot Analysis Total . | . . . Derelict Logs Recovered 1 | . . 1 Drone Launches . | . . . Drone Recoveries . | . . . Exploration | -11 -10 -10 ------------- Run | Yrd Mat Min Turns Passed 993 | 51 303 639 Spaces Moved 732 | 28 210 494 Core 8 | 8 . . Treads . | . . . Legs 529 | 20 210 299 Wheels 195 | . . 195 Hover . | . . . Flight . | . . . Fastest Speed 50 | 50 120 80 Average Speed 112 | 133 120 108 Slowest Speed 200 | 200 120 190 Overloaded Moves . | . . . Propulsion Burnouts . | . . . Robots Hopped . | . . . Cave-ins Triggered . | . . . Exploration Rate (%) 45 | 4 39 94 Regions Visited 2 Branch Regions 1 Pre-discovered Areas . | . . . Known Exits Taken . | . . . Unknown Exits Taken 2 | 1 1 . Scrap Searched 1 | . . 1 Spaces Dug . | . . . Terrain Destroyed 27 | . 1 26 Melee . | . . . Projectile . | . . . AOE 27 | . 1 26 Terrain Rammed . | . . . Walls Destroyed . | . . . Machines Disabled . | . . . Actions | -11 -10 -10 --------- Run | Yrd Mat Min Total 831 | 38 240 553 Wait 1 | . 1 . Move 731 | 28 209 494 Hop . | . . . Pick Up 17 | 4 5 8 Fast Attach 13 | 6 4 3 Attach 6 | . . 6 Detach 2 | . 1 1 Swap 9 | . 3 6 Drop 11 | . 5 6 Fire 40 | . 12 28 Melee . | . . . Ram . | . . . Kick . | . . . Crush . | . . . Escape Stasis . | . . . Rewire 1 | . . 1 Trap . | . . . Miscellaneous . | . . . Route ------- -11/Scrapyard -10/Materials (discovered 3 exits: *Mat / *Min x2) -10/Mines (discovered 3 exits: *Mat x2 / [*Exi]) History --------- Turn | Location | Event 22 | -11/Scrapyard | Discovered new exit (range 15) 52 | -11/Scrapyard | Entered Materials 150 | -10/Materials | Discovered new exit (range 17) 296 | -10/Materials | Discovered new exit (range 8) 316 | -10/Materials | Build established: Mutant 342 | -10/Materials | Discovered new exit (range 18) 355 | -10/Materials | Entered Mines 367 | -10/Mines | Found a hidden stash of uninstalled traps 377 | -10/Mines | Assembled infested the area 390 | -10/Mines | Core integrity fell below 50% 390 | -10/Mines | Met 8R-AWN 424 | -10/Mines | Lost 6 parts (2p2n2w) 466 | -10/Mines | Found the Drone Emporium 471 | -10/Mines | Found Prototype Device 525 | -10/Mines | Discovered new exit (range 10) 724 | -10/Mines | Core integrity fell below 20% 735 | -10/Mines | Identified exit to Materials 753 | -10/Mines | Received a Mining Laser from a helpful Derelict 776 | -10/Mines | Discovered new exit (range 5) 892 | -10/Mines | Build established: Scavenger-Mutant 994 | -10/Mines | Destroyed by S-10 Pest with Light Assault Rifle Last Messages --------------- Acquired Mining Laser. 3G-XTU(g): "Mining lasers are a lot more useful than you might think..." EXIT=FOUND System corrupted: Matter fused (-6). System corrupted: Energy discharge (-32). G-47 Trooper suffers critical hit (Burn). G-47 Trooper destroyed. G-34 Mercenary destroyed. Acquired 6 matter. System corrupted: Energy discharge (-46). Dropped Aluminum Leg. Discarded Visual Processing Unit. Acquired 20 matter. Acquired Aluminum Leg. Dropped Aluminum Leg. Acquired Aluminum Leg. K-01 Serf collects debris. 0,DS&,T7K GRCU&Y7BN=T= S-10 Pest destroyed. Map ----- +----------------------------------------------------+ | | | | | | | | | | | | | | | ???????????????????????????? ???? | | ????????????????????????????? #?# | | ?????????????????????????????? ## | | ???????????????????????????????" | | ???????????????????????????????# | | ???????????????????????????????# | | ????????????????????????????????# | | ????????????????????????????????? | | ????????????????????######?####?? | | ???????###?????????## ### ##? | | ???#####T#########?# ## | | ???# ##""""### | | ???# """ #" "## | | ???# """ #" "## ### | | ???# """ ## ## # | | ???# ### ## | | ???# ss # X # | | ???# %= # ## #### # | | ???# g@ # ###% #? # ## | | ????### #### #?# ######## | | ??????# ##### ##?# #??????# | | ??????# #########??# #??????# | | ??????#### #??????????# #??????? | | ?????????# #?????????## ##?????? | | ???????### ########### #?????? | | ???????# ##????? | | ???????# #????? | | ???????# ############# #????? | | ???????# #???????????## ##????? | | ???????# #????????????####?????? | | ???????# #???######????????????? | | ???????# #### #????????????? | | ??????## #????????????? | | ??????# """ ### #????????????? | | ?????## """ ##?# #????????????? | | ????## """ ##?# #????????????? | | ????# ### #????????????? | | ??# ##?????????### | | ?# ## ## ##???????# | | ?# #### ### #????### | | ?## #???##### ##??# | | ??#####??????## ### | | ?????????????# | +----------------------------------------------------+ Best States ------------- Heat Dissipation 25 Energy Generation 14 Energy Capacity 265 Matter Stores 300 Matter Capacity 300 Sight Range 18 Terrain Scan Density 10 Evasion (%) 55 Item Schematics ----------------- None Robot Schematics ------------------ None Fabricated ------------ Nothing Alien Tech Used ----------------- None Achievements -------------- None Challenges ------------ None Game ------ Seed DefenseCargoDetonator Manual? 0 Play Time 00:15:41 Cumulative 9.5 hours Start 2024.05.08 @ 01:47:12 End 2024.05.08 @ 01:59:39 Sessions 1 Manual Loads 0 Difficulty Rogue Special Mode None Game No. 23 Rogue 23 Adventurer 0 Explorer 0 Win Type - Total 0 Types 0/0/0/0/0/0/0/0/0 Lore% 13 Gallery% 13 Achievement% 12 Wizard Run 0 Options --------- Layout 1 ASCII 0 Keyboard 1 Movement Numpad Keybinds 0 Fullscreen 1 Font 24/Smallcaps Map View 50x35 Zoom Use 11% Tactical HUD 0 Map Filters NONE Filters NONE Steam 1 RUN: ad1f0fe0-1c0e-4598-b99b-d3a226710cb2